[Event "Weekendtournooi Groningen & PK NOSBO"]
[Site "Groningen, Netherlands"]
[Date "2023.05.20"]
[Round "4.10"]
[White "Klooster, Jim"]
[Black "Aden, Keno"]
[Result "0-1"]
[TimeControl "90min + 30sec/move"]
[WhiteElo "1887"]
[BlackElo "1701"]

1. e4 {[%clk 01:30:57]} {[%emt 00:12:15]} c6 {[%clk 01:30:54]} 2. d4 {[%clk
01:31:23]} {[%emt 00:00:03]} d5 {[%clk 01:31:20]} 3. exd5 {[%clk 01:31:50]}
cxd5 {[%clk 01:31:43]} 4. Nc3 {[%clk 01:31:14]} Nf6 {[%clk 01:32:00]} 5. Bf4
{[%clk 01:29:52]} a6 {[%clk 01:31:21]} 6. Nf3 {[%clk 01:22:56]} Nc6 {[%clk
01:30:57]} {[%emt 00:00:03]} 7. h3 {[%clk 01:21:09]} Bf5 {[%clk 01:28:12]} 8.
Bd3 {[%clk 01:15:08]} Bxd3 {[%clk 01:28:15]} 9. Qxd3 {[%clk 01:15:32]} e6
{[%clk 01:28:37]} 10. O-O {[%clk 01:14:25]} {[%emt 00:00:05]} Be7 {[%clk
01:28:51]} 11. Ne5 {[%clk 01:03:01]} O-O {[%clk 01:27:24]} 12. a3 {[%clk
01:01:00]} Rc8 {[%clk 01:22:26]} 13. b4 {[%clk 00:52:14]} Nxe5 {[%clk
01:19:07]} 14. Bxe5 {[%clk 00:52:08]} {[%emt 00:00:19]} Nd7 {[%clk 01:19:31]}
15. Bg3 {[%clk 00:51:01]} Rc4 {[%clk 01:16:12]} 16. Na4 {[%clk 00:47:59]} Bf6
{[%clk 01:11:02]} 17. c3 {[%clk 00:47:55]} Qe7 {[%clk 00:59:57]} 18. Nc5 {[%clk
00:45:52]} {[%emt 00:00:10]} b6 {[%clk 00:42:53]} {[%emt 00:17:28]} 19. Nb7
{[%clk 00:40:28]} {[%emt 00:06:18]} Nb8 {[%clk 00:37:30]} {[%emt 00:05:46]} 20.
Nd6 {[%clk 00:37:53]} {[%emt 00:03:06]} Rc6 {[%clk 00:37:19]} {[%emt 00:00:22]}
21. b5 {[%clk 00:36:11]} {[%emt 00:02:41]} Rxd6 {[%clk 00:36:51]} {[%emt
00:00:31]} 22. Bxd6 {[%clk 00:36:35]} {[%emt 00:00:06]} Qxd6 {[%clk 00:37:19]}
{[%emt 00:00:04]} 23. bxa6 {[%clk 00:36:59]} {[%emt 00:00:05]} Nc6 {[%clk
00:33:45]} {[%emt 00:04:00]} 24. Rfb1 {[%clk 00:36:23]} {[%emt 00:01:06]} Na5
{[%clk 00:32:50]} {[%emt 00:01:34]} 25. Qb5 {[%clk 00:36:12]} {[%emt 00:00:41]}
Nc4 {[%clk 00:32:18]} {[%emt 00:00:52]} 26. a4 {[%clk 00:36:05]} {[%emt
00:00:37]} Bd8 {[%clk 00:26:25]} {[%emt 00:06:24]} 27. a5 {[%clk 00:18:46]}
{[%emt 00:17:49]} Nxa5 {[%clk 00:11:57]} {[%emt 00:14:57]} 28. a7 {[%clk
00:18:28]} {[%emt 00:01:13]} Bc7 {[%clk 00:11:28]} {[%emt 00:00:44]} 29. Rxa5
{[%clk 00:11:45]} {[%emt 00:07:03]} bxa5 {[%clk 00:11:52]} {[%emt 00:00:20]} 30.
Qb7 {[%clk 00:12:07]} Qd8 {[%clk 00:08:27]} {[%emt 00:03:55]} 31. Qc6 {[%clk
00:11:22]} {[%emt 00:01:10]} Qd6 {[%clk 00:03:36]} {[%emt 00:05:24]} 32. Qxd6
{[%clk 00:07:10]} {[%emt 00:04:49]} Bxd6 {[%clk 00:03:59]} 33. Rb6 {[%clk
00:07:37]} Bc7 {[%clk 00:02:12]} {[%emt 00:02:40]} 34. Rb7 {[%clk 00:08:01]}
Ra8 {[%clk 00:02:09]} {[%emt 00:00:14]} 35. Rxc7 {[%clk 00:08:16]} {[%emt
00:00:30]} g6 {[%clk 00:02:18]} {[%emt 00:00:18]} 36. Rb7 {[%clk 00:07:24]}
{[%emt 00:01:14]} Kg7 {[%clk 00:02:36]} {[%emt 00:00:11]} 37. Kf1 {[%clk
00:02:20]} {[%emt 00:05:31]} a4 {[%clk 00:02:51]} {[%emt 00:00:30]} 38. Ke2
{[%clk 00:01:05]} {[%emt 00:01:31]} a3 {[%clk 00:03:05]} {[%emt 00:00:19]} 39.
Rb1 {[%clk 00:01:30]} {[%emt 00:00:07]} Rxa7 {[%clk 00:03:13]} {[%emt
00:00:17]} 40. Ra1 {[%clk 00:01:11]} {[%emt 00:00:49]} a2 {[%clk 00:03:25]}
{[%emt 00:00:18]} 41. Kd3 {[%clk 00:01:38]} {[%emt 00:00:06]} Kf6 {[%clk
00:03:05]} {[%emt 00:00:47]} 42. f4 {[%clk 00:01:06]} {[%emt 00:01:15]} g5
{[%clk 00:02:33]} {[%emt 00:00:50]} 43. fxg5+ {[%clk 00:01:30]} {[%emt
00:00:06]} Kxg5 {[%clk 00:02:59]} {[%emt 00:00:06]} 44. g3 {[%clk 00:01:58]}
{[%emt 00:00:10]} f5 {[%clk 00:02:57]} {[%emt 00:00:20]} 45. Kc2 {[%clk
00:02:22]} {[%emt 00:00:11]} f4 {[%clk 00:02:40]} {[%emt 00:01:06]} 46. gxf4+
{[%clk 00:02:49]} Kxf4 {[%clk 00:03:06]} 47. Kb2 {[%clk 00:03:17]} Kg3 {[%clk
00:03:13]} {[%emt 00:00:09]} 48. h4 {[%clk 00:03:05]} {[%emt 00:00:43]} h5
{[%clk 00:03:11]} {[%emt 00:00:33]} 49. Rg1+ {[%clk 00:03:18]} {[%emt
00:00:56]} Kxh4 {[%clk 00:03:31]} 50. Ka1 {[%clk 00:03:43]} Kh3 {[%clk
00:02:39]} {[%emt 00:01:06]} 51. Rh1+ {[%clk 00:04:06]} Kg4 {[%clk 00:02:59]}
{[%emt 00:00:10]} 52. Rg1+ {[%clk 00:04:30]} {[%emt 00:00:06]} Kf5 {[%clk
00:03:06]} {[%emt 00:00:23]} 53. Rh1 {[%clk 00:04:55]} {[%emt 00:00:07]} Kg5
{[%clk 00:02:56]} {[%emt 00:00:34]} 54. Re1 {[%clk 00:04:11]} {[%emt 00:01:14]}
Ra6 {[%clk 00:03:02]} {[%emt 00:00:24]} 55. Rg1+ {[%clk 00:04:37]} {[%emt
00:00:40]} Kh6 {[%clk 00:03:18]} 56. Rh1 {[%clk 00:05:04]} Ra3 {[%clk
00:03:16]} {[%emt 00:00:14]} 57. Re1 {[%clk 00:05:28]} {[%emt 00:00:26]} Ra6
{[%clk 00:03:04]} {[%emt 00:00:43]} 58. Rh1 {[%clk 00:05:52]} Kg5 {[%clk
00:02:57]} {[%emt 00:01:00]} 59. Rg1+ {[%clk 00:06:17]} Kf4 {[%clk 00:01:52]}
{[%emt 00:01:09]} 60. Rh1 {[%clk 00:06:40]} {[%emt 00:00:08]} Ra3 {[%clk
00:01:45]} {[%emt 00:00:35]} 61. Rxh5 {[%clk 00:06:56]} {[%emt 00:00:07]} Rxc3
{[%clk 00:02:05]} {[%emt 00:00:11]} 62. Kxa2 {[%clk 00:05:02]} {[%emt
00:02:24]} Re3 {[%clk 00:02:03]} {[%emt 00:00:36]} 63. Kb2 {[%clk 00:05:15]}
{[%emt 00:00:12]} Ke4 {[%clk 00:02:05]} {[%emt 00:00:42]} 64. Rh4+ {[%clk
00:03:54]} {[%emt 00:01:37]} Kd3 {[%clk 00:02:22]} {[%emt 00:00:34]} 65. Kb3
{[%clk 00:02:26]} {[%emt 00:01:26]} Re4 {[%clk 00:02:36]} {[%emt 00:00:45]} 66.
Rh1 {[%clk 00:02:21]} {[%emt 00:00:48]} Kxd4 {[%clk 00:02:51]} 0-1

[Event "Weekendtournooi Groningen & PK NOSBO"]
[Site "Groningen, Netherlands"]
[Date "2023.05.20"]
[Round "4.11"]
[White "Van Dijk, Ron"]
[Black "Clemens, Adrian"]
[Result "1/2-1/2"]
[TimeControl "90min + 30sec/move"]
[BlackTitle "FM"]
[WhiteElo "1746"]
[BlackElo "2060"]

1. Nf3 d5 2. e3 Nf6 3. d4 e6 4. c4 c5 5. cxd5 exd5 6. dxc5 Bxc5 7. Bb5+ Nc6 8.
O-O O-O 9. b3 Bg4 10. Bb2 Qe7 11. Nbd2 Rac8 12. Be2 Bd6 13. h3 Bh5 14. Nd4 Qe5
15. g3 Bxe2 16. Qxe2 Qg5 17. N2f3 Nxd4 18. Bxd4 Qh6 19. Kg2 a6 20. Rac1 Ne4 21.
Nd2 Qe6 22. Nxe4 dxe4 23. Qb2 1/2-1/2

[Event "Weekendtournooi Groningen & PK NOSBO"]
[Site "Groningen, Netherlands"]
[Date "2023.05.20"]
[Round "5.1"]
[White "Aden, Keno"]
[Black "Maatman, Nick"]
[Result "0-1"]
[TimeControl "90min + 30sec/move"]
[BlackTitle "IM"]
[WhiteElo "1701"]
[BlackElo "2348"]

1. d4 {[%clk 01:30:54]} Nf6 {[%clk 01:21:34]} {[%emt 00:09:18]} 2. Nf3 {[%clk
01:31:01]} {[%emt 00:00:45]} d5 {[%clk 01:21:53]} {[%emt 00:00:04]} 3. c4
{[%clk 01:31:14]} {[%emt 00:00:05]} e6 {[%clk 01:22:17]} {[%emt 00:00:06]} 4.
g3 {[%clk 01:31:36]} {[%emt 00:00:25]} Bb4+ {[%clk 01:22:31]} 5. Bd2 {[%clk
01:31:46]} {[%emt 00:00:20]} Be7 {[%clk 01:22:57]} {[%emt 00:00:04]} 6. Bg2
{[%clk 01:32:03]} {[%emt 00:00:10]} c6 {[%clk 01:22:22]} {[%emt 00:01:05]} 7.
Qc2 {[%clk 01:31:37]} {[%emt 00:01:02]} Nbd7 {[%clk 01:22:07]} {[%emt
00:00:39]} 8. O-O {[%clk 01:31:41]} {[%emt 00:00:32]} Ne4 {[%clk 01:18:58]}
{[%emt 00:03:32]} 9. Nc3 {[%clk 01:30:05]} {[%emt 00:02:06]} Nxd2 {[%clk
01:03:07]} {[%emt 00:16:22]} 10. Nxd2 {[%clk 01:30:28]} {[%emt 00:00:11]} O-O
{[%clk 01:02:05]} {[%emt 00:01:28]} 11. e4 {[%clk 01:28:38]} {[%emt 00:02:45]}
dxc4 {[%clk 00:58:09]} {[%emt 00:04:04]} 12. Nxc4 {[%clk 01:27:55]} {[%emt
00:01:08]} b5 {[%clk 00:52:16]} {[%emt 00:06:24]} 13. Ne5 {[%clk 01:22:36]}
{[%emt 00:05:51]} Nxe5 {[%clk 00:51:35]} {[%emt 00:01:09]} 14. dxe5 {[%clk
01:23:00]} {[%emt 00:00:14]} a6 {[%clk 00:43:22]} {[%emt 00:08:35]} 15. Ne2
{[%clk 01:11:59]} {[%emt 00:12:10]} Qc7 {[%clk 00:42:44]} {[%emt 00:00:30]} 16.
Nd4 {[%clk 01:08:32]} {[%emt 00:03:58]} c5 {[%clk 00:41:08]} {[%emt 00:02:06]}
17. a4 {[%clk 01:01:24]} {[%emt 00:07:37]} Rb8 {[%clk 00:39:04]} {[%emt
00:02:34]} 18. axb5 {[%clk 00:58:43]} {[%emt 00:03:13]} axb5 {[%clk 00:39:32]}
{[%emt 00:00:08]} 19. Rfc1 {[%clk 00:56:11]} {[%emt 00:03:19]} Bd7 {[%clk
00:38:45]} {[%emt 00:01:09]} 20. f4 {[%clk 00:51:52]} {[%emt 00:04:31]} Rfc8
{[%clk 00:37:03]} {[%emt 00:02:10]} 21. Kh1 {[%clk 00:50:28]} {[%emt 00:01:55]}
c4 {[%clk 00:36:14]} {[%emt 00:01:22]} 22. Bf1 {[%clk 00:44:13]} {[%emt
00:06:43]} Qb7 {[%clk 00:35:28]} {[%emt 00:01:19]} 23. Rd1 {[%clk 00:42:48]}
{[%emt 00:01:55]} Rc7 {[%clk 00:32:31]} {[%emt 00:04:07]} 24. Bg2 {[%clk
00:41:24]} {[%emt 00:01:12]} b4 {[%clk 00:31:51]} {[%emt 00:01:09]} 25. f5
{[%clk 00:39:50]} {[%emt 00:02:03]} Rc5 {[%clk 00:25:23]} {[%emt 00:07:01]} 26.
f6 {[%clk 00:38:30]} {[%emt 00:01:48]} Bf8 {[%clk 00:25:21]} {[%emt 00:00:39]}
27. Nf3 {[%clk 00:36:32]} {[%emt 00:02:20]} c3 {[%clk 00:19:48]} {[%emt
00:06:03]} 28. b3 {[%clk 00:35:43]} {[%emt 00:01:19]} Bc6 {[%clk 00:18:49]}
{[%emt 00:02:02]} 29. Rd4 {[%clk 00:32:52]} {[%emt 00:03:29]} Qb6 {[%clk
00:18:11]} {[%emt 00:00:29]} 30. h4 {[%clk 00:19:25]} {[%emt 00:14:21]} Ra5
{[%clk 00:17:52]} {[%emt 00:00:24]} 31. Rdd1 {[%clk 00:19:30]} {[%emt
00:00:50]} Rxa1 {[%clk 00:17:51]} {[%emt 00:00:05]} 32. Rxa1 {[%clk 00:19:55]}
{[%emt 00:00:30]} Rd8 {[%clk 00:17:43]} {[%emt 00:00:13]} 33. Re1 {[%clk
00:18:29]} {[%emt 00:01:57]} Bb5 {[%clk 00:13:30]} {[%emt 00:05:24]} 34. Bf1
{[%clk 00:17:37]} {[%emt 00:00:41]} Bxf1 {[%clk 00:13:38]} {[%emt 00:00:48]} 35.
Rxf1 {[%clk 00:18:07]} Qe3 {[%clk 00:13:58]} 36. Kg2 {[%clk 00:17:26]} {[%emt
00:00:58]} Rd3 {[%clk 00:13:48]} {[%emt 00:00:38]} 37. Rf2 {[%clk 00:16:57]}
{[%emt 00:01:02]} Qxe4 {[%clk 00:13:58]} {[%emt 00:00:15]} 38. Qe2 {[%clk
00:16:57]} {[%emt 00:00:55]} Qd5 {[%clk 00:13:40]} {[%emt 00:00:53]} 39. Kh2
{[%clk 00:16:53]} {[%emt 00:00:06]} g6 {[%clk 00:12:58]} {[%emt 00:01:10]} 40.
h5 {[%clk 00:15:51]} {[%emt 00:01:34]} c2 {[%clk 00:11:55]} {[%emt 00:01:32]}
0-1

[Event "Weekendtournooi Groningen & PK NOSBO"]
[Site "Groningen, Netherlands"]
[Date "2023.05.20"]
[Round "5.2"]
[White "Hummel, Paul"]
[Black "De Boer, Eelke"]
[Result "1-0"]
[TimeControl "90min + 30sec/move"]
[BlackTitle "FM"]
[WhiteElo "2152"]
[BlackElo "2293"]

1. d4 {[%clk 01:30:56]} {[%emt 00:00:04]} Nf6 {[%clk 01:28:56]} {[%emt
00:02:28]} 2. Nf3 {[%clk 01:30:31]} {[%emt 00:00:28]} g6 {[%clk 01:29:17]}
{[%emt 00:00:10]} 3. c4 {[%clk 01:30:58]} {[%emt 00:00:05]} Bg7 {[%clk
01:29:40]} {[%emt 00:00:05]} 4. g3 {[%clk 01:31:23]} {[%emt 00:00:15]} O-O
{[%clk 01:30:03]} 5. Bg2 {[%clk 01:31:50]} d6 {[%clk 01:30:23]} {[%emt
00:00:11]} 6. O-O {[%clk 01:32:11]} {[%emt 00:00:14]} Nc6 {[%clk 01:30:45]}
{[%emt 00:00:04]} 7. Nc3 {[%clk 01:32:01]} {[%emt 00:00:39]} e5 {[%clk
01:30:44]} {[%emt 00:00:36]} 8. d5 {[%clk 01:31:42]} {[%emt 00:00:42]} Nb8
{[%clk 01:31:06]} {[%emt 00:00:35]} 9. Ne1 {[%clk 01:30:06]} {[%emt 00:02:07]}
a5 {[%clk 01:31:10]} {[%emt 00:00:15]} 10. Nd3 {[%clk 01:30:21]} Na6 {[%clk
01:31:07]} {[%emt 00:00:34]} 11. e4 {[%clk 01:29:49]} {[%emt 00:00:59]} Nd7
{[%clk 01:31:10]} {[%emt 00:00:40]} 12. Be3 {[%clk 01:25:56]} {[%emt 00:04:46]}
f5 {[%clk 01:31:02]} {[%emt 00:00:10]} 13. Qd2 {[%clk 01:22:42]} {[%emt
00:03:47]} b6 {[%clk 01:29:43]} {[%emt 00:01:44]} 14. f4 {[%clk 01:20:25]}
{[%emt 00:02:57]} exf4 {[%clk 01:19:15]} {[%emt 00:11:03]} 15. Bxf4 {[%clk
01:20:21]} {[%emt 00:00:14]} Ndc5 {[%clk 01:06:20]} {[%emt 00:13:26]} 16. Bg5
{[%clk 01:18:35]} {[%emt 00:02:37]} Qe8 {[%clk 00:53:03]} {[%emt 00:13:24]} 17.
Nxc5 {[%clk 01:07:33]} {[%emt 00:11:32]} Nxc5 {[%clk 00:52:39]} {[%emt
00:01:16]} 18. exf5 {[%clk 01:05:02]} {[%emt 00:02:39]} Rxf5 {[%clk 00:52:15]}
{[%emt 00:01:20]} 19. Rxf5 {[%clk 01:03:40]} {[%emt 00:01:27]} Bxf5 {[%clk
00:52:38]} {[%emt 00:00:08]} 20. Re1 {[%clk 01:03:11]} {[%emt 00:01:06]} Qf8
{[%clk 00:41:54]} {[%emt 00:11:05]} 21. Nb5 {[%clk 00:59:37]} {[%emt 00:04:06]}
h6 {[%clk 00:29:26]} {[%emt 00:12:56]} 22. Be3 {[%clk 00:54:40]} {[%emt
00:05:26]} Rc8 {[%clk 00:22:16]} {[%emt 00:07:40]} 23. Bd4 {[%clk 00:42:15]}
{[%emt 00:12:58]} Bd7 {[%clk 00:18:36]} {[%emt 00:04:07]} 24. Bxg7 {[%clk
00:36:41]} {[%emt 00:06:30]} Qxg7 {[%clk 00:18:10]} {[%emt 00:00:32]} 25. Nd4
{[%clk 00:37:05]} {[%emt 00:00:08]} Re8 {[%clk 00:15:21]} {[%emt 00:03:15]} 26.
Rxe8+ {[%clk 00:32:58]} {[%emt 00:04:38]} Bxe8 {[%clk 00:15:46]} {[%emt
00:00:08]} 27. Bh3 {[%clk 00:32:31]} {[%emt 00:00:55]} Qe5 {[%clk 00:14:12]}
{[%emt 00:02:25]} 28. Be6+ {[%clk 00:28:00]} {[%emt 00:04:41]} Kg7 {[%clk
00:14:26]} {[%emt 00:00:14]} 29. b3 {[%clk 00:24:49]} {[%emt 00:03:41]} Ne4
{[%clk 00:12:24]} {[%emt 00:02:32]} 30. Qe3 {[%clk 00:20:53]} {[%emt 00:04:26]}
Ng5 {[%clk 00:05:58]} {[%emt 00:07:24]} 31. Kf2 {[%clk 00:17:28]} {[%emt
00:03:57]} Ne4+ {[%clk 00:03:24]} {[%emt 00:02:53]} 32. Kf3 {[%clk 00:13:29]}
{[%emt 00:04:13]} Nc5 {[%clk 00:01:10]} {[%emt 00:02:43]} 33. a3 {[%clk
00:12:09]} {[%emt 00:01:47]} Kf6 {[%clk 00:00:38]} {[%emt 00:01:02]} 34. Bc8
{[%clk 00:08:34]} {[%emt 00:04:07]} h5 {[%clk 00:00:35]} {[%emt 00:00:30]} 35.
h4 {[%clk 00:07:07]} {[%emt 00:02:15]} Nd7 {[%clk 00:00:33]} {[%emt 00:00:17]}
36. Ne6 {[%clk 00:04:40]} {[%emt 00:02:55]} Qf5+ {[%clk 00:00:46]} {[%emt
00:00:17]} 37. Qf4 {[%clk 00:04:25]} {[%emt 00:00:46]} Ne5+ {[%clk 00:00:47]}
{[%emt 00:00:31]} 38. Ke3 {[%clk 00:04:41]} {[%emt 00:00:11]} c5 {[%clk
00:00:33]} {[%emt 00:00:43]} 39. Nc7 {[%clk 00:03:12]} {[%emt 00:02:39]} Ng4+
{[%clk 00:00:39]} 40. Qxg4 {[%clk 00:02:52]} {[%emt 00:00:34]} Qe5+ {[%clk
00:00:44]} {[%emt 00:00:26]} 41. Qe4 {[%clk 00:03:22]} Qc3+ {[%clk 00:00:44]}
{[%emt 00:00:38]} 42. Kf2 {[%clk 00:03:17]} {[%emt 00:00:27]} Qd2+ {[%clk
00:00:35]} {[%emt 00:01:09]} 43. Qe2 {[%clk 00:03:29]} Qd4+ {[%clk 00:00:51]}
{[%emt 00:00:19]} 44. Kg2 {[%clk 00:03:41]} {[%emt 00:00:04]} 1-0

[Event "Weekendtournooi Groningen & PK NOSBO"]
[Site "Groningen, Netherlands"]
[Date "2023.05.20"]
[Round "5.4"]
[White "Keuning, Selwin"]
[Black "Westerlaan, Sander"]
[Result "1/2-1/2"]
[TimeControl "90min + 30sec/move"]
[WhiteElo "2148"]
[BlackElo "1960"]

1. e4 {[%clk 01:30:57]} {[%emt 00:00:26]} c5 {[%clk 01:30:57]} 2. c3 {[%clk
01:31:24]} d6 {[%clk 01:30:30]} {[%emt 00:00:45]} 3. d4 {[%clk 01:31:43]}
{[%emt 00:00:09]} Nf6 {[%clk 01:30:51]} {[%emt 00:00:35]} 4. Bd3 {[%clk
01:31:49]} {[%emt 00:00:10]} Nc6 {[%clk 01:29:52]} {[%emt 00:01:27]} 5. d5
{[%clk 01:26:44]} {[%emt 00:05:24]} Ne5 {[%clk 01:30:16]} {[%emt 00:00:30]} 6.
Be2 {[%clk 01:25:16]} {[%emt 00:01:40]} e6 {[%clk 01:23:07]} {[%emt 00:07:31]}
7. Nf3 {[%clk 01:16:20]} {[%emt 00:09:30]} exd5 {[%clk 01:22:01]} {[%emt
00:01:32]} 8. exd5 {[%clk 01:16:35]} {[%emt 00:00:41]} Nxf3+ {[%clk 01:19:47]}
{[%emt 00:02:18]} 9. Bxf3 {[%clk 01:14:54]} {[%emt 00:02:39]} Be7 {[%clk
01:19:44]} {[%emt 00:00:14]} 10. O-O {[%clk 01:13:31]} {[%emt 00:02:05]} O-O
{[%clk 01:20:08]} {[%emt 00:00:08]} 11. a4 {[%clk 01:09:21]} {[%emt 00:04:20]}
Bf5 {[%clk 01:11:27]} {[%emt 00:09:08]} 12. Na3 {[%clk 01:01:51]} {[%emt
00:07:59]} a6 {[%clk 01:10:12]} {[%emt 00:01:49]} 13. Bf4 {[%clk 00:58:28]}
{[%emt 00:03:51]} Qc7 {[%clk 00:52:17]} {[%emt 00:18:24]} 14. Re1 {[%clk
00:45:53]} {[%emt 00:13:03]} Rfe8 {[%clk 00:51:06]} {[%emt 00:01:43]} 15. Nc4
{[%clk 00:38:13]} {[%emt 00:08:10]} Bf8 {[%clk 00:45:19]} {[%emt 00:06:17]} 16.
Rxe8 {[%clk 00:32:55]} {[%emt 00:05:48]} Rxe8 {[%clk 00:45:43]} {[%emt
00:00:32]} 17. a5 {[%clk 00:33:15]} {[%emt 00:00:09]} g6 {[%clk 00:36:03]}
{[%emt 00:09:48]} 18. h3 {[%clk 00:31:30]} {[%emt 00:02:14]} Be4 {[%clk
00:32:51]} {[%emt 00:03:40]} 19. Nb6 {[%clk 00:15:12]} {[%emt 00:16:48]} Bg7
{[%clk 00:30:43]} {[%emt 00:02:43]} 20. Bxe4 {[%clk 00:04:20]} {[%emt
00:11:19]} Rxe4 {[%clk 00:29:15]} {[%emt 00:01:58]} 21. Qf3 {[%clk 00:04:04]}
{[%emt 00:00:46]} Qe7 {[%clk 00:14:50]} {[%emt 00:14:57]} 22. Nc8 {[%clk
00:04:13]} {[%emt 00:00:40]} Qc7 {[%clk 00:15:12]} {[%emt 00:00:10]} 23. Nb6
{[%clk 00:02:31]} {[%emt 00:01:50]} Qe7 {[%clk 00:15:32]} {[%emt 00:00:09]} 24.
Nc8 {[%clk 00:00:41]} {[%emt 00:02:19]} Qc7 {[%clk 00:15:28]} {[%emt 00:00:35]}
25. Nb6 {[%clk 00:00:56]} {[%emt 00:00:17]} Re8 {[%emt 00:00:14]} 26. Nc4 Re4
{[%emt 00:00:06]} 27. Nb6 Qe7 {[%emt 00:00:05]} 28. Nc8 Qc7 29. Nxd6 Rxf4 30.
Qxf4 Ne8 {[%emt 00:00:10]} 31. Qxf7+ Qxf7 32. Nxf7 Kxf7 33. Re1 Nd6 1/2-1/2

[Event "Weekendtournooi Groningen & PK NOSBO"]
[Site "Groningen, Netherlands"]
[Date "2023.05.20"]
[Round "5.5"]
[White "Kingma, Lukas"]
[Black "Noordenbos, Daan"]
[Result "1-0"]
[TimeControl "90min + 30sec/move"]
[WhiteElo "1518"]
[BlackElo "2076"]

1. d4 {[%clk 01:30:58]} Nf6 {[%clk 01:30:47]} {[%emt 00:00:04]} 2. c4 {[%clk
01:31:26]} g6 {[%clk 01:31:09]} {[%emt 00:00:12]} 3. Nc3 {[%clk 01:31:54]} Bg7
{[%clk 01:31:29]} {[%emt 00:00:07]} 4. e4 {[%clk 01:32:22]} d6 {[%clk
01:31:44]} {[%emt 00:00:17]} 5. Nf3 {[%clk 01:32:50]} O-O {[%clk 01:32:01]}
{[%emt 00:00:17]} 6. Be2 {[%clk 01:33:18]} Nbd7 {[%clk 01:32:18]} {[%emt
00:00:13]} 7. O-O {[%clk 01:33:22]} {[%emt 00:00:27]} e5 {[%clk 01:32:40]}
{[%emt 00:00:09]} 8. Be3 {[%clk 01:33:49]} Qe7 {[%clk 01:32:48]} {[%emt
00:00:24]} 9. d5 {[%clk 01:33:16]} {[%emt 00:01:07]} a5 {[%clk 01:27:54]}
{[%emt 00:05:20]} 10. Nd2 {[%clk 01:31:41]} {[%emt 00:02:08]} c5 {[%clk
01:23:55]} {[%emt 00:04:26]} 11. Qc2 {[%clk 01:26:03]} {[%emt 00:06:11]} Ne8
{[%clk 01:16:26]} {[%emt 00:07:57]} 12. f4 {[%clk 01:15:58]} {[%emt 00:10:36]}
f5 {[%clk 01:10:09]} {[%emt 00:06:46]} 13. fxe5 {[%clk 01:06:12]} {[%emt
00:10:16]} Nxe5 {[%clk 01:09:43]} {[%emt 00:00:56]} 14. Nf3 {[%clk 01:04:20]}
{[%emt 00:02:21]} f4 {[%clk 01:07:20]} {[%emt 00:02:53]} 15. Bd2 {[%clk
00:59:50]} {[%emt 00:05:01]} Bd7 {[%clk 00:55:59]} {[%emt 00:11:51]} 16. Nd1
{[%clk 00:52:45]} {[%emt 00:07:37]} a4 {[%clk 00:48:06]} {[%emt 00:08:21]} 17.
a3 {[%clk 00:46:46]} {[%emt 00:06:40]} Nc7 {[%clk 00:46:28]} {[%emt 00:01:56]}
18. Bc3 {[%clk 00:42:15]} {[%emt 00:05:01]} b5 {[%clk 00:44:13]} {[%emt
00:02:52]} 19. Nxe5 {[%clk 00:39:10]} {[%emt 00:03:34]} Bxe5 {[%clk 00:44:02]}
{[%emt 00:00:35]} 20. Bxe5 {[%clk 00:39:19]} {[%emt 00:00:21]} Qxe5 {[%clk
00:44:30]} {[%emt 00:00:05]} 21. Kh1 {[%clk 00:34:26]} {[%emt 00:05:22]} bxc4
{[%clk 00:32:00]} {[%emt 00:12:58]} 22. Nc3 {[%clk 00:30:24]} {[%emt 00:04:38]}
Rf6 {[%clk 00:30:35]} {[%emt 00:01:49]} 23. Bxc4 {[%clk 00:28:28]} {[%emt
00:02:25]} g5 {[%clk 00:29:45]} {[%emt 00:01:20]} 24. Be2 {[%clk 00:18:50]}
{[%emt 00:10:07]} g4 {[%clk 00:28:06]} {[%emt 00:02:10]} 25. Qd1 {[%clk
00:16:14]} {[%emt 00:03:06]} h5 {[%clk 00:26:39]} {[%emt 00:02:09]} 26. Rc1
{[%clk 00:13:27]} {[%emt 00:03:08]} Kg7 {[%clk 00:26:41]} {[%emt 00:00:24]} 27.
h3 {[%clk 00:08:26]} {[%emt 00:05:37]} Rg6 {[%clk 00:23:18]} {[%emt 00:03:47]}
28. Rc2 {[%clk 00:03:21]} {[%emt 00:05:35]} gxh3 {[%clk 00:18:46]} {[%emt
00:05:11]} 29. gxh3 {[%clk 00:03:47]} Bxh3 {[%clk 00:18:56]} {[%emt 00:00:15]}
30. Rg1 {[%clk 00:04:01]} {[%emt 00:00:17]} Rxg1+ {[%clk 00:19:12]} {[%emt
00:00:13]} 31. Qxg1+ {[%clk 00:04:29]} Kh6 {[%clk 00:17:25]} {[%emt 00:02:20]}
32. Bf3 {[%clk 00:03:30]} {[%emt 00:01:28]} Qg5 {[%clk 00:13:39]} {[%emt
00:04:17]} 33. Qd1 {[%clk 00:00:52]} {[%emt 00:03:08]} Rg8 {[%clk 00:09:31]}
{[%emt 00:04:38]} 34. e5 {[%clk 00:01:19]} {[%emt 00:00:06]} Qxe5 {[%clk
00:02:41]} {[%emt 00:07:17]} 35. Rh2 {[%clk 00:01:36]} {[%emt 00:00:13]} Qf5
{[%clk 00:02:58]} {[%emt 00:00:12]} 36. Bxh5 {[%clk 00:00:49]} {[%emt
00:01:18]} Bg2+ {[%clk 00:02:45]} {[%emt 00:00:44]} 37. Rxg2 {[%clk 00:01:11]}
{[%emt 00:00:09]} Qh3+ {[%clk 00:03:13]} 38. Rh2 {[%clk 00:01:33]} {[%emt
00:00:10]} Rg3 {[%clk 00:02:38]} {[%emt 00:01:02]} 39. Rxh3 {[%clk 00:01:37]}
{[%emt 00:00:29]} Rxh3+ {[%clk 00:03:08]} 40. Kg2 {[%clk 00:02:05]} Rxh5 {[%clk
00:03:37]} 41. Qf3 {[%clk 00:01:58]} {[%emt 00:00:39]} Rf5 {[%clk 00:03:18]}
{[%emt 00:00:48]} 42. Qh3+ {[%clk 00:01:28]} {[%emt 00:01:03]} Kg6 {[%clk
00:03:26]} {[%emt 00:00:29]} 43. Kf3 {[%clk 00:01:49]} Ne8 {[%clk 00:02:00]}
{[%emt 00:01:54]} 44. Qg4+ {[%clk 00:01:59]} {[%emt 00:00:20]} Rg5 {[%clk
00:02:14]} {[%emt 00:00:17]} 45. Qe6+ {[%clk 00:02:27]} Nf6 {[%clk 00:02:34]}
{[%emt 00:00:12]} 46. Ne4 {[%clk 00:02:05]} {[%emt 00:00:52]} Rf5 {[%clk
00:02:59]} {[%emt 00:00:05]} 47. Qxd6 {[%clk 00:02:01]} {[%emt 00:00:37]} c4
{[%clk 00:03:12]} {[%emt 00:00:15]} 48. Nxf6 {[%clk 00:02:06]} {[%emt
00:00:24]} Rxf6 {[%clk 00:03:41]} 49. Qc5 {[%clk 00:02:35]} Kf5 {[%clk
00:03:35]} {[%emt 00:00:37]} 50. d6+ {[%clk 00:02:12]} {[%emt 00:00:53]} Ke6
{[%clk 00:04:05]} 51. Qxc4+ {[%clk 00:02:22]} {[%emt 00:00:20]} Kxd6 {[%clk
00:04:33]} {[%emt 00:00:06]} 52. Qd4+ {[%clk 00:02:43]} {[%emt 00:00:06]} Ke6
{[%clk 00:04:58]} {[%emt 00:00:06]} 53. Qxf6+ {[%clk 00:03:11]} {[%emt
00:00:10]} Kxf6 {[%clk 00:05:14]} {[%emt 00:00:05]} 54. Kxf4 {[%clk 00:03:39]}
1-0